bitfinex-derivatives/quotes_SOLF0:USTF0_20250307
["timestamp","ask_amount","ask_price","bid_price","bid_amount"]
[1741315524549,31.78,141.22,141.15,0.04638675]
[1741315525154,38.8603,141.22,141.18,7.0822]
[1741315525349,31.78,141.22,141.12,31.78]
[1741315525553,0.05331694,141.21,141.19,0.05233333]
[1741315525859,0.54973965,141.23,141.17,31.76]
[1741315526154,0.54973965,141.23,141.18,1.8851]
[1741315526855,0.05384273,141.22,141.19,2.06384104]
[1741315527252,0.05384273,141.22,141.19,9.14524104]
[1741315527450,78.47372204,141.24,141.19,2.06384104]
[1741315527848,78.47372204,141.24,141.22,7.0798]
[1741315528049,72.25372204,141.24,141.19,2.06384104]
[1741315528248,69.14302204,141.24,141.19,2.06384104]
[1741315528450,0.45980331,141.25,141.23,7.0797]
[1741315528650,0.45980331,141.25,141.19,2.0157]
[1741315528854,0.51302669,141.25,141.23,0.0500921]
[1741315529955,41.48031105,141.25,141.23,0.0500921]
[1741315530259,7.0792,141.24,141.23,0.0500921]
[1741315530452,73.24031105,141.25,141.23,0.0500921]
[1741315531353,0.51302669,141.25,141.23,0.0500921]
[1741315532060,0.51302669,141.25,141.24,7.0792]
[1741315532265,0.51302669,141.25,141.23,0.0500921]
[1741315533663,0.51302669,141.25,141.23,7.1294921]
[1741315533861,0.51302669,141.25,141.23,0.0500921]
[1741315534162,0.51302669,141.25,141.24,7.0792]
[1741315534366,0.51580121,141.26,141.23,0.0500921]
[1741315534554,0.47057369,141.28,141.23,0.0500921]
[1741315534755,0.47057369,141.28,141.24,7.0789]
[1741315535062,0.47057369,141.28,141.23,0.0500921]
[1741315535461,0.05322841,141.27,141.23,0.0500921]
[1741315535658,0.05322841,141.27,141.26,7.0782]
[1741315535860,0.47057369,141.28,141.23,0.0500921]
[1741315536960,0.05211994,141.27,141.23,0.0500921]
[1741315537757,0.05211994,141.27,141.26,7.0782]
[1741315538152,0.47057369,141.28,141.23,0.0500921]
[1741315538362,0.48964558,141.29,141.23,0.0500921]
[1741315538762,0.48964558,141.29,141.28,7.0772]
[1741315538956,0.55401856,141.32,141.27,31.72]
[1741315539361,0.36614288,141.33,141.32,7.0752]
[1741315539759,0.36614288,141.33,141.31,0.04637551]
[1741315540658,0.36614288,141.33,141.31,7.12197551]
[1741315540967,0.36614288,141.33,141.31,0.04637551]
[1741315541371,0.36614288,141.33,141.32,7.0752]
[1741315541961,0.47236616,141.34,141.33,7.0747]
[1741315543161,0.54671222,141.36,141.35,7.0737]
[1741315543358,0.54946447,141.38,141.35,31.7]
[1741315543562,0.54946447,141.38,141.37,7.0727]
[1741315544567,0.54946447,141.38,141.36,2.05432751]
[1741315544767,0.54946447,141.38,141.36,0.04762751]
[1741315550072,0.54946447,141.38,141.37,7.0727]
[1741315550271,0.54946447,141.38,141.36,0.04762751]
[1741315551064,6.447e-05,141.38,141.37,7.0727]
[1741315551469,6.447e-05,141.38,141.36,31.72762751]
[1741315552777,6.447e-05,141.38,141.36,0.04762751]
[1741315553770,6.447e-05,141.38,141.36,7.12072751]
[1741315554875,6.447e-05,141.38,141.36,0.04762751]
[1741315557374,4.715e-05,141.39,141.36,0.04762751]
[1741315557574,7.185e-05,141.4,141.36,0.04762751]
[1741315557974,7.185e-05,141.4,141.39,7.0717]
[1741315559779,0.44712138,141.42,141.41,7.0707]
[1741315562096,0.38601986,141.47,141.4,0.04528731]
[1741315562387,7.377e-05,141.47,141.4,27.10269843]
[1741315562580,7.377e-05,141.47,141.4,1.95228731]
[1741315563178,32.21871112,141.46,141.4,7.11608731]
[1741315563372,62.77071112,141.46,141.4,7.11608731]
[1741315563781,62.77071112,141.46,141.4,0.04528731]
[1741315564174,37.6203,141.46,141.4,0.04528731]
[1741315564783,62.77071112,141.46,141.4,0.04528731]
[1741315565373,7.0697,141.44,141.4,0.04528731]
[1741315565577,62.77071112,141.46,141.4,0.04528731]
[1741315567379,7.377e-05,141.47,141.4,0.04528731]
[1741315567977,7.06827377,141.47,141.4,0.04528731]
[1741315568186,31.64007377,141.47,141.4,0.04528731]
[1741315568585,7.0688,141.45,141.4,0.04528731]
[1741315568890,7.377e-05,141.47,141.4,31.66528731]
[1741315569089,7.377e-05,141.47,141.4,56.81569843]
[1741315569283,7.377e-05,141.47,141.41,5.9495]
[1741315569992,7.377e-05,141.47,141.46,7.0682]
[1741315571294,7.377e-05,141.47,141.45,38.73292406]
[1741315571590,7.377e-05,141.47,141.45,0.04462406]
[1741315571993,7.377e-05,141.47,141.39,31.62]
[1741315572293,7.0693,141.44,141.36,5.9583]
[1741315572491,7.0693,141.44,141.36,37.5783]
[1741315572694,7.0697,141.43,141.37,7.0727]
[1741315572888,27.20311112,141.46,141.36,37.5783]
[1741315573090,0.05030796,141.41,141.39,0.05100578]
[1741315573292,27.20311112,141.46,141.39,0.05100578]
[1741315573293,7.0702,141.43,141.39,0.05100578]
[1741315573494,0.04708652,141.41,141.39,0.05100578]
[1741315575394,0.04708652,141.41,141.4,7.0712]
[1741315575698,7.377e-05,141.47,141.4,31.62]
[1741315575895,77.51615891,141.47,141.43,7.0696]
[1741315576193,77.51615891,141.47,141.4,33.6826]
[1741315576391,77.51615891,141.47,141.45,7.0684]
[1741315576696,77.51615891,141.47,141.45,31.6]
[1741315576892,52.91045891,141.47,141.46,7.0682]
[1741315577088,40.94195891,141.47,141.46,7.0682]
[1741315577282,17.83005891,141.47,141.46,7.0682]
[1741315577494,5.891e-05,141.47,141.46,7.0682]
[1741315578184,87.38550185,141.48,141.47,7.0677]
[1741315578387,65.08880185,141.48,141.47,7.0677]
[1741315578594,65.08880185,141.48,141.46,2.0626]
[1741315578797,0.48229792,141.49,141.46,2.0626]
[1741315579196,0.48229792,141.49,141.45,31.65162767]
[1741315579392,32.08229792,141.49,141.45,0.05162767]
[1741315579699,1.9802,141.48,141.45,0.05162767]
[1741315579901,3.9803,141.48,141.45,0.05162767]
[1741315580101,7.0682,141.46,141.45,0.05162767]
[1741315580498,3.9803,141.48,141.38,266.839]
[1741315580698,40.85575005,141.47,141.35,31.6]
[1741315581200,40.85575005,141.47,141.36,1.959]
[1741315581400,3.9803,141.48,141.34,79.08522659]
[1741315581401,40.85575005,141.44,141.34,38.22947654]
[1741315581601,31.6464528,141.43,141.4,0.04917175]
[1741315581796,0.0464528,141.43,141.34,38.22947654]
[1741315582105,40.85575005,141.44,141.34,38.22947654]
[1741315582106,31.6,141.42,141.34,38.22947654]
[1741315582289,1.8899,141.41,141.34,38.22947654]
[1741315582898,42.74565005,141.41,141.34,38.22947654]
[1741315583097,0.04762938,141.39,141.36,0.04507986]
[1741315583297,31.6,141.38,141.36,0.04507986]
[1741315583800,0.04762938,141.39,141.36,0.04507986]
[1741315585105,40.90337943,141.39,141.28,1.23127001]
[1741315585300,40.85575005,141.39,141.27,33.5827]
[1741315586300,0.04513485,141.34,141.32,0.04767858]
[1741315586504,40.85575005,141.39,141.32,0.04767858]
[1741315586707,0.05371359,141.34,141.32,0.04767858]
[1741315586904,7.0738,141.35,141.32,0.04767858]
[1741315587203,0.05327395,141.34,141.32,0.04767858]
[1741315587507,0.05327395,141.34,141.33,7.0747]
[1741315588008,0.05327395,141.34,141.32,0.04767858]
[1741315588713,0.05327395,141.34,141.26,1.9958]
[1741315589911,0.05327395,141.34,141.29,0.05423651]
[1741315590113,0.05327395,141.34,141.3,31.6]
[1741315590311,0.05327395,141.34,141.29,0.05423651]
[1741315591211,31.6,141.33,141.29,0.05423651]
[1741315592215,40.85575005,141.32,141.23,1.9989]
[1741315592410,7.0778,141.27,141.22,7.0802]
[1741315592608,72.45575005,141.29,141.18,2.0362]
[1741315593415,72.45575005,141.29,141.17,38.22947654]
[1741315593622,0.04702572,141.25,141.22,0.04585929]
[1741315594120,7.12592572,141.25,141.22,0.04585929]
[1741315594309,0.04702572,141.25,141.22,0.04585929]
[1741315594708,0.04702572,141.25,141.24,7.0792]
[1741315595117,1.8808,141.31,141.24,35.14]
[1741315595321,31.6,141.32,141.24,31.6]
[1741315595615,74.43145005,141.35,141.24,31.6]
[1741315596519,0.05116383,141.31,141.28,0.0536372]
[1741315597017,31.65116383,141.31,141.28,0.0536372]
[1741315597224,0.05116383,141.31,141.28,0.0536372]
[1741315598122,31.6,141.3,141.19,33.5205]
[1741315598424,1.9813,141.29,141.19,35.5694]
[1741315598611,7.0777,141.27,141.21,7.0807]
[1741315598810,31.6,141.3,141.19,35.5694]
[1741315599212,7.0772,141.29,141.22,7.0798]
[1741315599420,0.05293393,141.26,141.23,0.0519186]
[1741315600314,7.079,141.25,141.23,0.0519186]
[1741315600510,31.65293393,141.26,141.23,0.0519186]
[1741315600711,7.0787,141.25,141.23,0.0519186]
[1741315600917,31.65293393,141.26,141.23,0.0519186]
[1741315601121,0.05293393,141.26,141.23,0.0519186]
[1741315601422,0.05293393,141.26,141.24,7.0792]
[1741315601625,0.05293393,141.26,141.23,0.0519186]
[1741315601812,31.65293393,141.26,141.18,7.0818]
[1741315602017,31.65293393,141.26,141.15,1.9248]
[1741315602224,31.65293393,141.26,141.15,33.5248]
[1741315602520,1.9289,141.28,141.16,40.85575005]
[1741315602711,40.85575005,141.27,141.15,34.75705098]
[1741315602911,40.85575005,141.27,141.15,33.5248]
[1741315603121,0.04969607,141.22,141.2,0.04548245]
[1741315603522,0.04530593,141.22,141.2,0.04548245]
[1741315605124,0.04530593,141.22,141.13,3.8028]
[1741315605526,1.9052,141.23,141.13,3.8028]
[1741315605716,1.9052,141.23,141.13,5.6881]
[1741315606224,0.04626957,141.19,141.17,0.05097269]
[1741315606428,31.6,141.24,141.17,0.05097269]
[1741315606912,0.05101671,141.22,141.17,0.05097269]
[1741315607433,0.05101671,141.22,141.18,7.0822]
[1741315607721,0.05101671,141.22,141.17,0.05097269]
[1741315608119,7.13131671,141.22,141.17,7.13367269]
[1741315608315,0.05101671,141.22,141.17,0.05097269]
[1741315608716,0.05101671,141.22,141.21,7.0808]
[1741315609230,0.05101671,141.22,141.2,0.05395936]
[1741315610922,7.0808,141.21,141.2,0.05395936]
[1741315611924,0.05101671,141.22,141.2,0.05395936]
[1741315613121,7.0808,141.21,141.2,0.05395936]
[1741315613324,0.05101671,141.22,141.13,3.8819]
[1741315613528,40.97144381,141.23,141.13,35.5019]
[1741315613726,7.0824,141.18,141.13,8.9699]
[1741315614228,31.62,141.2,141.13,1.8853]
[1741315614430,3.9781,141.19,141.1,31.62]
[1741315614619,0.04478819,141.18,141.15,0.04671728]
[1741315614821,7.0833,141.16,141.15,0.04671728]
[1741315616528,38.7033,141.16,141.15,0.04671728]
[1741315616723,7.0847,141.14,141.08,9.0802]
[1741315616924,31.62,141.16,141.05,2.0661]
[1741315617331,7.0848,141.13,141.05,2.0661]
[1741315617531,7.0848,141.13,141.07,7.0873]
[1741315617725,31.62,141.16,141.05,2.0661]
[1741315617932,0.0508708,141.11,141.09,0.04817944]
[1741315618218,31.62,141.16,141.09,0.04817944]
[1741315618432,0.04643395,141.11,141.09,0.04817944]
[1741315618629,31.62,141.16,141.09,0.04817944]
[1741315618830,0.05028676,141.11,141.09,7.13487944]
[1741315619030,31.62,141.16,141.09,0.04817944]
[1741315619335,0.05247798,141.11,141.09,0.04817944]
[1741315619521,7.0863,141.1,141.02,31.62]
[1741315619734,31.62,141.12,141.02,31.62]
[1741315619939,7.0867,141.1,141.04,7.0888]
[1741315620131,7.0867,141.1,141.02,31.62]
[1741315620532,7.0858,141.11,141.02,31.62]
[1741315620732,0.046348,141.07,141.05,0.04820233]
[1741315621133,0.046348,141.07,141.06,7.0883]
[1741315621338,0.046348,141.07,141.05,0.04820233]
[1741315622438,7.0883,141.06,141.05,0.04820233]
[1741315622733,0.046348,141.07,141.05,0.04820233]
[1741315623637,0.046348,141.07,140.99,7.0917]
[1741315623838,1.912048,141.07,140.96,31.62]
[1741315624043,7.0892,141.05,140.99,7.0916]
[1741315624334,42.92564381,141.11,141.0,31.62]
[1741315624535,1.9542,141.11,141.01,5.9505]
[1741315624730,0.04471334,141.07,141.04,0.05423731]
[1741315624936,40.97144381,141.17,141.05,31.62]
[1741315625138,7.0842,141.15,141.05,31.62]
[1741315625433,40.97144381,141.17,141.05,31.62]
[1741315626243,0.04624841,141.12,141.1,0.04815432]
[1741315626437,0.04624841,141.12,141.1,31.68815432]
[1741315626634,7.0824,141.18,141.1,31.64]
[1741315626841,0.05296661,141.12,141.1,31.69324627]
[1741315627144,5.915e-05,141.12,141.1,31.69107713]
[1741315627440,5.915e-05,141.12,141.11,7.0858]
[1741315628639,5.915e-05,141.12,141.11,10.6258]
[1741315629247,5.915e-05,141.12,141.11,7.0858]
[1741315630754,5.915e-05,141.12,141.1,38.77737713]
[1741315631443,5.915e-05,141.12,141.1,31.69107713]
[1741315631645,5.915e-05,141.12,141.1,0.05107713]
[1741315632038,25.2352978,141.11,141.03,31.62]
[1741315632239,58.7440978,141.11,141.03,31.62]
[1741315632450,7.0868,141.09,141.03,31.62]
[1741315632749,33.5088,141.11,141.03,31.62]
[1741315632935,1.8888,141.11,141.08,7.0873]
[1741315633140,25.2352978,141.14,141.08,7.0873]
[1741315633346,0.0496566,141.11,141.08,7.0873]
[1741315633645,0.0496566,141.11,141.1,0.05437954]
[1741315633943,0.0496566,141.11,141.09,7.0866]
[1741315634144,0.0496566,141.11,141.09,0.04573763]
[1741315634346,56.8552978,141.2,141.09,0.04573763]
[1741315634651,33.5269,141.19,141.08,2.0514]
[1741315634853,7.0833,141.16,141.1,7.0862]
[1741315635148,33.5269,141.19,141.08,2.0514]
[1741315635347,33.5269,141.19,141.07,31.62]
[1741315635348,25.2352978,141.17,141.07,31.62]
[1741315635552,25.2352978,141.14,141.04,35.6093]
[1741315635849,56.8552978,141.14,141.04,35.6093]
[1741315636049,0.04487686,141.1,141.08,0.05395912]
[1741315636447,7.0868,141.09,141.08,0.05395912]
[1741315636639,31.66487686,141.1,141.03,2.0514]
[1741315637753,7.0868,141.09,141.04,7.0888]
[1741315637939,38.7268,141.09,141.05,0.05157531]
[1741315638549,7.0873,141.08,141.05,0.05157531]
[1741315639248,31.64,141.09,141.05,0.05157531]
[1741315639760,31.64,141.09,141.06,7.0882]
[1741315640752,0.04487686,141.1,141.08,7.0871]
[1741315641057,0.04487686,141.1,141.05,0.05157531]
[1741315641254,0.04487686,141.1,141.09,7.0868]
[1741315641456,0.04487686,141.1,141.0,29.2147978]
[1741315641457,0.04487686,141.1,141.08,31.64]
[1741315641647,31.62,141.15,141.08,31.68610963]
[1741315641957,25.2352978,141.14,141.08,0.04610963]
[1741315642164,0.05303579,141.13,141.08,0.04610963]
[1741315643360,7.13823579,141.13,141.08,7.13330963]
[1741315643553,0.05303579,141.13,141.08,7.13330963]
[1741315643857,0.05303579,141.13,141.08,0.04610963]
[1741315644361,7.0854,141.12,141.08,0.04610963]
[1741315644549,0.05303579,141.13,141.08,0.04610963]
[1741315645058,7.0863,141.1,141.08,0.04610963]
[1741315645253,1.8956,141.12,141.08,0.04610963]
[1741315645451,7.0859,141.11,141.08,0.04610963]
[1741315645855,1.8956,141.12,141.08,0.04610963]
[1741315646758,0.05303579,141.13,141.08,0.04610963]
[1741315648154,7.0868,141.09,141.08,0.04610963]
[1741315648352,56.8552978,141.11,141.01,1.9494]
[1741315648754,56.8552978,141.11,141.02,7.0899]
[1741315648962,56.8552978,141.11,141.01,1.9494]
[1741315649259,7.087,141.09,141.05,7.0887]
[1741315649461,0.04997752,141.07,141.05,0.0531575]
[1741315649951,7.0883,141.06,141.05,0.0531575]
[1741315650156,0.04997752,141.07,141.05,0.0531575]
[1741315650959,0.04997752,141.07,141.05,7.1418575]
[1741315651165,0.04997752,141.07,141.05,0.0531575]
[1741315652367,7.0883,141.06,141.05,0.0531575]
[1741315652566,0.04997752,141.07,141.05,0.0531575]
[1741315655358,0.04997752,141.07,141.01,31.62]
[1741315655755,7.0883,141.06,141.01,7.0905]
[1741315655960,0.04997752,141.07,140.98,33.6146]
[1741315656161,0.04997752,141.07,140.97,1.928]
[1741315656162,31.62,141.07,140.97,1.928]
[1741315656361,7.0902,141.03,140.98,7.092]
[1741315656661,7.13994236,141.03,141.01,0.05082889]
[1741315657269,0.04974236,141.03,141.01,0.05082889]
[1741315659985,0.04974236,141.03,141.01,7.14162889]
[1741315660169,0.04974236,141.03,141.01,0.05082889]
[1741315661265,0.04974236,141.03,141.02,7.0903]
[1741315661465,33.5548,141.09,141.01,0.05082889]
[1741315661874,1.9348,141.09,141.01,0.05082889]
[1741315662374,31.62,141.12,141.01,0.05082889]
[1741315662566,0.0462985,141.06,141.0,31.62]
[1741315662772,0.0462985,141.06,141.05,0.04454634]
[1741315662970,0.0462985,141.06,141.03,7.0894]
[1741315663176,0.0462985,141.06,141.04,0.04705853]
[1741315663876,7.1346985,141.06,141.04,0.04705853]
[1741315665467,0.0462985,141.06,141.04,0.04705853]
[1741315666577,0.0462985,141.06,141.05,7.0888]
[1741315668175,0.0462985,141.06,141.04,0.04705853]
[1741315668865,9.85e-05,141.06,141.05,7.0888]
[1741315672882,9.85e-05,141.06,141.05,10.6288]
[1741315673481,9.85e-05,141.06,141.05,7.0888]
[1741315673677,9.85e-05,141.06,141.04,0.04705853]
[1741315674389,9.85e-05,141.06,141.05,7.0888]
[1741315675981,9.85e-05,141.06,141.04,0.04705853]
[1741315678574,7.0888,141.05,141.04,0.04705853]
[1741315678780,9.85e-05,141.06,141.04,0.04705853]
[1741315679478,7.0887985,141.06,141.04,0.04705853]
[1741315679681,9.85e-05,141.06,141.04,0.04705853]
[1741315680978,15.79377708,141.06,140.95,2.0616]
[1741315681195,2.0587,141.09,140.95,3.9823]
[1741315681196,15.79367858,141.03,140.95,3.9823]
[1741315681382,7.0909,141.01,140.96,7.093]
[1741315681881,7.0909,141.01,140.96,7.0932]
[1741315682187,0.05194113,141.0,140.97,0.05112669]
[1741315685078,25.28824333,140.99,140.91,76.84796265]
[1741315685278,7.0948,140.93,140.91,76.84796265]
[1741315685493,31.6,140.95,140.88,9.54913266]
[1741315686079,3.9619,140.98,140.88,41.14913266]
[1741315686080,35.5619,140.98,140.88,41.14913266]
[1741315686290,0.05166009,140.93,140.9,0.04718094]
[1741315686890,0.05166009,140.93,140.9,7.14348094]
[1741315687195,0.05166009,140.93,140.9,0.04718094]
[1741315687591,25.28824333,141.02,140.9,0.04718094]
[1741315687592,33.5458,141.03,140.9,0.04718094]
[1741315687795,31.6,141.03,140.91,25.28824333]
[1741315687984,31.6,141.03,140.99,7.0914]
[1741315688186,31.6,141.03,140.96,31.6]
[1741315688604,33.5157,141.06,140.96,31.6]
[1741315688898,0.05328912,141.01,140.98,0.05442864]
[1741315689093,7.0918,140.99,140.98,0.05442864]
[1741315689396,31.65328912,141.01,140.9,265.6]
[1741315689598,31.6,141.01,140.9,265.6]
[1741315690499,0.05432219,140.97,140.94,0.04505209]
[1741315691391,7.0938,140.95,140.94,0.04505209]
[1741315691595,31.65432219,140.97,140.88,31.6]
[1741315691895,7.0949,140.93,140.88,7.097]
[1741315692096,31.6,140.93,140.82,31.6]
[1741315692496,31.6,140.93,140.85,7.0988]
[1741315692690,25.28824333,140.91,140.82,2.0535]
[1741315692896,0.04575644,140.9,140.82,2.0535]
[1741315693092,31.6,140.89,140.81,41.14913266]
[1741315693797,31.6,140.89,140.81,9.54913266]
[1741315694101,0.04803072,140.86,140.81,9.54913266]
[1741315696397,1.23555414,140.99,140.85,25.28824333]
[1741315696599,7.0914,141.0,140.89,25.28824333]
[1741315696793,1.9003,141.02,140.9,31.62]
[1741315697101,77.67837604,141.0,140.91,234.12]
[1741315697501,0.0515961,140.97,140.94,0.04803073]
[1741315697699,0.0515961,140.97,140.95,31.62]
[1741315697893,0.0515961,140.97,140.94,0.04803073]
[1741315699293,56.93983943,140.97,140.86,31.6]
[1741315699497,1.9227,140.96,140.86,31.6]
[1741315700201,1.9227,140.96,140.86,38.6979]
[1741315700596,0.05383514,140.92,140.86,31.6]
[1741315701105,0.05383514,140.92,140.85,234.1]
[1741315701402,0.05383514,140.92,140.82,25.28824333]
[1741315701403,4.07123514,140.92,140.83,31.6]
[1741315701599,4.0174,140.92,140.8,31.6]
[1741315701798,4.0174,140.92,140.81,7.1009]
[1741315702103,0.05422846,140.89,140.81,7.1009]
[1741315702303,7.15152846,140.89,140.8,31.6]
[1741315702500,0.05422846,140.89,140.8,31.6]
[1741315702700,4.0174,140.92,140.8,31.6]
[1741315702998,0.04609937,140.86,140.8,31.6]
[1741315703398,0.04609937,140.86,140.81,7.1005]
[1741315703591,0.04609937,140.86,140.8,31.6]
[1741315703997,7.14449937,140.86,140.8,31.6]
[1741315704299,0.04609937,140.86,140.79,234.12]
[1741315705015,0.04609937,140.86,140.83,7.0995]
[1741315705214,0.04609937,140.86,140.82,31.62]
[1741315705411,0.04609937,140.86,140.79,234.12]
[1741315705412,0.04609937,140.86,140.79,265.74]
[1741315706212,0.04609937,140.86,140.82,7.1003]
[1741315706408,0.04609937,140.86,140.79,265.74]
[1741315706613,0.04609937,140.86,140.84,7.0993]
[1741315707221,0.04609937,140.86,140.73,235.43586129]
[1741315707415,27.2496427,140.86,140.74,31.62]
[1741315707608,27.20354333,140.86,140.74,31.62]
[1741315707910,0.05322727,140.81,140.74,31.62]
[1741315708213,2.0188,140.92,140.79,25.28824333]
[1741315708517,1.9529,140.91,140.8,31.62]
[1741315708713,1.9529,140.91,140.82,25.28824333]
[1741315709015,1.9529,140.91,140.82,259.48824333]
[1741315709216,2.0188,140.92,140.82,259.48824333]
[1741315709523,0.04604044,140.88,140.85,0.05322727]
[1741315709711,0.04604044,140.88,140.86,31.62]
[1741315709907,38.7139,140.95,140.9,7.096]
[1741315710418,0.04623676,140.94,140.91,0.04835264]
[1741315710614,0.04623676,140.94,140.92,7.0952]
[1741315710815,0.04623676,140.94,140.91,0.04835264]
[1741315711213,7.0953,140.92,140.91,0.04835264]
[1741315711817,2.0142,140.93,140.91,0.04835264]
[1741315712322,0.04623676,140.94,140.91,0.04835264]
[1741315714715,0.04623676,140.94,140.92,31.62]
[1741315715119,0.04623676,140.94,140.92,38.7152]
[1741315715309,0.04623676,140.94,140.91,0.04835264]
[1741315716415,3.8361,141.0,140.91,0.04835264]
[1741315716617,2.0455,141.02,140.91,259.44824333]
[1741315717824,0.04926841,140.98,140.95,0.04907424]
[1741315718014,0.04926841,140.98,140.95,31.64907424]
[1741315718422,2.004,141.04,140.95,31.64907424]
[1741315718817,2.004,141.04,140.95,31.6]
[1741315719224,7.0904,141.02,140.97,7.0928]
[1741315719413,2.004,141.04,140.95,31.6]
[1741315719617,0.04751705,141.01,140.98,0.05323845]
[1741315721630,0.04751705,141.01,140.99,7.0914]
[1741315722033,0.04751705,141.01,140.98,0.05323845]
[1741315722924,0.04751705,141.01,140.99,31.6]
[1741315724623,7.13871705,141.01,140.98,0.05323845]
[1741315725228,0.04751705,141.01,140.98,0.05323845]
[1741315725429,3.91591705,141.01,140.9,32.8]
[1741315725634,5.93261705,141.01,140.9,32.8]
[1741315725830,5.8851,141.01,140.9,32.8]
[1741315726334,25.28824333,140.99,140.89,32.8]
[1741315726535,0.05356441,140.97,140.95,5.864e-05]
[1741315726932,7.0933,140.96,140.95,5.864e-05]
[1741315729340,0.05356441,140.97,140.95,5.864e-05]
[1741315731726,0.05356441,140.97,140.95,7.09375864]
[1741315732340,0.05356441,140.97,140.95,5.864e-05]
[1741315732533,0.05356441,140.97,140.95,7.09375864]
[1741315732738,0.05356441,140.97,140.95,5.864e-05]
[1741315733134,7.14636441,140.97,140.95,5.864e-05]
[1741315733735,7.0933,140.96,140.95,5.864e-05]
[1741315733931,32.56,140.96,140.95,5.864e-05]
[1741315734140,0.05356441,140.97,140.95,5.864e-05]
[1741315734635,3.59356441,140.97,140.95,5.864e-05]
[1741315734842,7.0969,140.89,140.84,7.0992]
[1741315735046,7.0969,140.89,140.8,63.51771987]
[1741315735245,33.38,140.93,140.82,33.38]
[1741315735540,33.38,140.93,140.87,7.0978]
[1741315735843,7.0967,140.9,140.85,7.0987]
[1741315736043,7.0967,140.9,140.89,0.04533316]
[1741315736336,0.053778,140.91,140.88,0.04543535]
[1741315736534,58.66824333,140.93,140.82,7.1002]
[1741315736734,0.0499702,140.91,140.88,0.04543535]
[1741315736934,7.0975,140.88,140.82,7.1]
[1741315737134,58.66824333,140.93,140.81,33.28]
[1741315737331,33.38,140.93,140.81,33.28]
[1741315737535,7.0964,140.9,140.85,7.0987]
[1741315738043,0.04574647,140.89,140.85,7.0987]
[1741315738248,0.04574647,140.89,140.81,33.28]
[1741315738744,34.26574647,140.89,140.79,237.1566]
[1741315739046,7.0984,140.86,140.79,237.1566]
[1741315739245,0.04917407,140.85,140.79,237.1566]
[1741315739431,0.04917407,140.85,140.79,235.1511]
[1741315739634,7.0998,140.84,140.79,234.1]
[1741315739838,0.04917407,140.85,140.73,234.14]
[1741315740147,1.8906,140.87,140.75,34.18]
[1741315740337,0.05011813,140.8,140.72,1.23601492]
[1741315740534,7.1026,140.78,140.71,60.31450532]
[1741315740840,34.18,140.85,140.77,7.1027]
[1741315741143,7.1023,140.79,140.74,35.0]
[1741315741342,0.04795917,140.82,140.76,7.1033]
[1741315741540,34.18,140.85,140.74,35.0]
[1741315741732,0.0532325,140.8,140.74,35.0]
[1741315742336,0.0532325,140.8,140.75,7.1039]
[1741315742541,0.0532325,140.8,140.74,35.0]
[1741315743232,0.0532325,140.8,140.75,7.1038]
[1741315743438,0.0532325,140.8,140.74,35.0]
[1741315744647,0.0532325,140.8,140.79,7.1019]
[1741315745151,0.0532325,140.8,140.75,0.9873]
[1741315746933,0.0532325,140.8,140.75,7.1038]
[1741315747139,0.0532325,140.8,140.74,270.3382]
[1741315748347,1.1612325,140.8,140.74,270.3382]
[1741315748549,1.1612325,140.8,140.79,7.1019]
[1741315749044,1.8906,140.87,140.78,34.92]
[1741315749851,34.88,140.91,140.79,25.28824333]
[1741315750240,0.05323494,140.86,140.84,0.05273443]
[1741315750548,34.88,140.91,140.84,0.05273443]
[1741315750951,0.05029859,140.89,140.84,0.05273443]
[1741315751352,0.05029859,140.89,140.88,7.0973]
[1741315752153,0.05029859,140.89,140.87,7.1510325]
[1741315752452,0.05029859,140.89,140.87,0.0532325]
[1741315752648,0.05029859,140.89,140.88,7.0973]
[1741315752854,0.05029859,140.89,140.87,0.0532325]
[1741315753258,0.05029859,140.89,140.87,7.1506325]
[1741315753755,0.05029859,140.89,140.87,0.0532325]
[1741315753950,29.06124333,140.97,140.87,3.5932325]
[1741315753951,3.773,140.97,140.87,3.5932325]
[1741315754151,3.773,140.97,140.87,25.28824333]
[1741315754349,10.8658,140.97,140.87,25.28824333]
[1741315754548,3.773,140.97,140.87,25.28824333]
[1741315754744,10.8659,140.97,140.87,25.28824333]
[1741315755246,0.0461673,140.93,140.91,0.04825055]
[1741315755446,36.6305,140.99,140.91,34.60825055]